bitfinex/quotes_SOLUSD_20250310
["timestamp","ask_amount","ask_price","bid_price","bid_amount"]
[1741611525181,23.20524413,129.92,129.88,1.6125]
[1741611525347,23.20524413,129.92,129.87,30.90494413]
[1741611525549,30.90244413,129.92,129.87,30.90494413]
[1741611526270,23.20524413,129.9,129.85,1.5929]
[1741611526444,88.93936157,129.92,129.85,1.5929]
[1741611526445,81.1,129.91,129.85,1.5929]
[1741611526776,23.20524413,129.89,129.85,1.5929]
[1741611526979,7.36,129.88,129.85,1.5929]
[1741611527787,7.36,129.88,129.84,30.96974413]
[1741611527956,7.36,129.88,129.84,0.063]
[1741611528155,38.26474413,129.88,129.84,0.063]
[1741611528684,7.36,129.88,129.84,30.96994413]
[1741611530261,7.36,129.88,129.85,0.063]
[1741611530977,23.20524413,129.87,129.85,0.063]
[1741611531722,23.20524413,129.86,129.85,0.063]
[1741611532501,31.0477057,129.87,129.85,0.063]
[1741611532700,30.56524413,129.88,129.85,0.063]
[1741611533010,7.36,129.88,129.85,0.063]
[1741611533208,7.36,129.88,129.85,23.26824413]
[1741611534198,7.36,129.88,129.86,23.20524413]
[1741611534401,7.36,129.88,129.85,0.063]
[1741611535479,7.36,129.88,129.85,7.764]
[1741611536108,7.36,129.88,129.85,0.063]
[1741611536609,7.36,129.88,129.85,7.7639]
[1741611536983,23.20524413,129.91,129.86,23.20524413]
[1741611537183,7.36,129.91,129.86,23.20524413]
[1741611537628,7.36,129.91,129.87,23.20524413]
[1741611537803,30.56524413,129.91,129.86,23.20524413]
[1741611538078,7.36,129.91,129.85,7.7639]
[1741611538304,23.20524413,129.89,129.85,0.063]
[1741611538510,30.90424413,129.89,129.85,0.063]
[1741611538717,23.20524413,129.87,129.85,0.063]
[1741611538929,7.36,129.86,129.85,0.063]
[1741611539197,30.56524413,129.86,129.85,0.063]
[1741611539405,7.36,129.86,129.85,0.063]
[1741611540608,15.0606,129.86,129.85,0.063]
[1741611540809,7.36,129.86,129.85,0.063]
[1741611541185,38.26584413,129.86,129.85,0.063]
[1741611541587,7.36,129.86,129.85,0.063]
[1741611542002,81.1,129.88,129.85,23.26824413]
[1741611542305,7.36,129.87,129.85,23.26824413]
[1741611542686,7.36,129.87,129.85,7.7639]
[1741611543095,7.36,129.87,129.85,30.96914413]
[1741611544011,7.36,129.87,129.85,7.7639]
[1741611544214,15.06,129.87,129.85,0.063]
[1741611544418,7.36,129.87,129.85,0.063]
[1741611545208,38.26534413,129.87,129.85,0.063]
[1741611545399,23.20524413,129.86,129.85,0.063]
[1741611545710,23.20524413,129.86,129.81,30.22944413]
[1741611547509,7.7011,129.85,129.81,30.22944413]
[1741611547906,23.20524413,129.86,129.81,30.22944413]
[1741611548213,7.50216157,129.87,129.83,23.20524413]
[1741611548606,7.36,129.86,129.82,23.20524413]
[1741611549625,38.26584413,129.86,129.81,23.20524413]
[1741611550142,23.20524413,129.85,129.8,1.6543]
[1741611550294,23.20524413,129.85,129.8,24.85954413]
[1741611550695,23.20524413,129.85,129.8,1.6543]
[1741611550890,23.20524413,129.85,129.8,24.85954413]
[1741611551126,30.90674413,129.85,129.8,32.56334413]
[1741611551413,0.14216157,129.85,129.8,32.56334413]
[1741611551606,23.3474057,129.85,129.8,32.56334413]
[1741611552638,0.14216157,129.85,129.8,32.56334413]
[1741611553133,111.66524413,129.86,129.81,23.20524413]
[1741611553421,81.1,129.86,129.82,23.20524413]
[1741611553724,7.36,129.85,129.81,23.20524413]
[1741611553938,7.36,129.85,129.8,9.4211]
[1741611553939,30.56524413,129.85,129.8,9.4211]
[1741611554140,23.20524413,129.84,129.8,7.7668]
[1741611554317,30.56524413,129.85,129.8,7.7668]
[1741611554628,30.56524413,129.85,129.8,30.97204413]
[1741611555625,23.20524413,129.84,129.8,7.7668]
[1741611555828,38.26664413,129.85,129.8,30.97204413]
[1741611556634,23.20524413,129.84,129.8,7.7668]
[1741611556926,30.90734413,129.84,129.8,7.7668]
[1741611557702,30.56524413,129.85,129.8,7.7668]
[1741611557902,30.56524413,129.85,129.8,30.97204413]
[1741611561429,38.26644413,129.85,129.8,30.97204413]
[1741611561629,23.20524413,129.84,129.8,7.7668]
[1741611562220,30.56524413,129.85,129.8,30.97204413]
[1741611563228,23.20524413,129.83,129.8,0.063]
[1741611563533,23.20524413,129.83,129.8,7.7671]
[1741611564328,23.20524413,129.83,129.8,0.063]
[1741611564703,23.20524413,129.84,129.8,0.063]
[1741611564929,23.3474057,129.84,129.8,0.063]
[1741611566205,23.20524413,129.84,129.8,0.063]
[1741611566437,111.66524413,129.85,129.81,7.7035]
[1741611568240,88.46,129.85,129.81,30.90874413]
[1741611569350,23.20524413,129.83,129.8,0.063]
[1741611569518,23.20524413,129.81,129.8,0.063]
[1741611569822,23.20524413,129.82,129.8,0.063]
[1741611570608,30.90844413,129.82,129.8,0.063]
[1741611571328,23.20524413,129.82,129.8,0.063]
[1741611571528,30.90814413,129.82,129.8,0.063]
[1741611571927,23.20524413,129.82,129.8,0.063]
[1741611572328,0.28432314,129.84,129.8,0.063]
[1741611572533,23.20524413,129.83,129.8,0.063]
[1741611573341,23.20524413,129.84,129.8,0.063]
[1741611573543,9.3561,129.86,129.8,23.26824413]
[1741611573544,23.20524413,129.86,129.8,23.26824413]
[1741611573743,7.36,129.84,129.8,23.26824413]
[1741611574350,30.56524413,129.84,129.8,0.063]
[1741611574655,23.20524413,129.83,129.8,0.063]
[1741611575320,30.90774413,129.83,129.8,0.063]
[1741611575521,23.20524413,129.83,129.8,0.063]
[1741611576140,23.20524413,129.82,129.8,0.063]
[1741611576338,23.3474057,129.81,129.8,0.063]
[1741611577644,31.0509057,129.81,129.8,0.063]
[1741611577840,23.3474057,129.81,129.8,0.063]
[1741611578227,88.8031,129.82,129.8,0.063]
[1741611578228,104.30524413,129.82,129.8,0.063]
[1741611579450,112.00824413,129.82,129.8,0.063]
[1741611580158,104.30524413,129.82,129.8,0.063]
[1741611580351,112.00814413,129.82,129.8,0.063]
[1741611581341,23.20524413,129.81,129.8,0.063]
[1741611581643,23.3474057,129.81,129.8,0.063]
[1741611581848,31.0509057,129.81,129.8,0.063]
[1741611582725,112.29306727,129.81,129.8,0.063]
[1741611583557,104.4474057,129.81,129.8,0.063]
[1741611584226,112.1509057,129.81,129.8,0.063]
[1741611584647,104.4474057,129.81,129.8,0.063]
[1741611584847,23.20524413,129.81,129.8,0.063]
[1741611585056,7.36,129.81,129.8,0.063]
[1741611587862,7.36,129.83,129.8,23.26824413]
[1741611588038,7.36,129.83,129.81,7.7035]
[1741611588245,7.36,129.83,129.8,7.7669]
[1741611588546,7.36,129.83,129.8,30.97214413]
[1741611589266,7.36,129.83,129.8,0.063]
[1741611589639,7.36,129.83,129.8,7.767]
[1741611589841,7.36,129.83,129.8,30.97224413]
[1741611590144,7.36,129.83,129.8,0.063]
[1741611590449,38.26764413,129.83,129.8,0.063]
[1741611592443,23.20524413,129.82,129.8,0.063]
[1741611594462,7.7035,129.81,129.8,0.063]
[1741611594961,30.90874413,129.81,129.8,0.063]
[1741611595178,31.19306727,129.81,129.8,0.063]
[1741611596056,23.20524413,129.82,129.8,0.063]
[1741611596250,30.90824413,129.82,129.8,0.063]
[1741611597173,111.66524413,129.83,129.8,0.063]
[1741611597368,119.36754413,129.83,129.8,0.063]
[1741611597691,111.66524413,129.83,129.8,0.063]
[1741611597865,119.36764413,129.83,129.8,0.063]
[1741611599664,23.20524413,129.82,129.8,0.063]
[1741611599850,111.66524413,129.83,129.8,0.063]
[1741611600049,103.28910437,129.83,129.8,0.063]
[1741611600366,23.20524413,129.83,129.8,0.063]
[1741611600747,0.17216157,129.84,129.8,0.063]
[1741611600949,23.20524413,129.81,129.8,0.063]
[1741611601154,30.54524413,129.81,129.8,0.063]
[1741611601481,7.34,129.81,129.8,0.063]
[1741611601772,38.24874413,129.81,129.8,0.063]
[1741611602454,38.53306727,129.81,129.8,0.063]
[1741611603068,57.18271613,129.81,129.8,0.063]
[1741611603279,57.18271613,129.81,129.8,0.0001]
[1741611603970,30.82956727,129.81,129.8,0.0001]
[1741611604162,7.62432314,129.81,129.8,0.0001]
[1741611604357,7.34,129.81,129.8,0.0001]
[1741611606479,7.34,129.82,129.8,0.0001]
[1741611607776,23.20524413,129.81,129.8,0.0001]
[1741611608372,38.24824413,129.82,129.8,0.0001]
[1741611609277,7.34,129.82,129.8,0.0001]
[1741611610162,15.043,129.82,129.8,0.0001]
[1741611610483,38.24824413,129.82,129.8,0.0001]
[1741611610868,7.34,129.82,129.8,0.0001]
[1741611611569,7.34,129.82,129.8,7.7042]
[1741611611880,7.34,129.82,129.8,0.0001]
[1741611612083,7.34,129.83,129.8,0.0001]
[1741611612263,0.03,129.84,129.82,23.20524413]
[1741611612465,0.03,129.84,129.83,23.20524413]
[1741611613466,0.03,129.84,129.83,30.90754413]
[1741611613875,0.03,129.84,129.83,23.20524413]
[1741611614084,0.03,129.84,129.82,29.74084413]
[1741611614470,0.03,129.84,129.82,37.44364413]
[1741611614664,0.03,129.84,129.82,37.44374413]
[1741611614869,0.03,129.84,129.83,23.20524413]
[1741611615687,0.03,129.84,129.83,30.90754413]
[1741611616265,0.03,129.84,129.83,23.20524413]
[1741611617885,0.03,129.84,129.82,29.74084413]
[1741611618272,0.03,129.84,129.83,23.20524413]
[1741611619565,0.03,129.84,129.83,30.90754413]
[1741611620971,0.03,129.84,129.82,14.2383]
[1741611621289,0.03,129.84,129.83,23.20524413]
[1741611621794,0.03,129.84,129.83,30.90754413]
[1741611622973,0.03,129.84,129.83,49.55719299]
[1741611624285,7.37,129.9,129.84,18.933972]
[1741611624286,0.03,129.9,129.84,18.933972]
[1741611624471,0.03,129.9,129.89,23.20524413]
[1741611625271,0.03,129.9,129.85,9.27]
[1741611625272,23.23524413,129.9,129.85,9.27]
[1741611625473,23.23524413,129.9,129.85,32.47524413]
[1741611625676,0.03,129.9,129.86,23.20524413]
[1741611625872,23.23524413,129.9,129.85,32.47524413]
[1741611626277,0.03,129.9,129.86,23.20524413]
[1741611626474,0.03,129.9,129.87,23.20524413]
[1741611626679,23.23524413,129.9,129.85,32.47524413]
[1741611626876,0.03,129.9,129.86,41.85489299]
[1741611627087,0.03,129.9,129.89,23.20524413]
[1741611628307,0.03,129.9,129.89,41.85489299]
[1741611628474,0.03,129.94,129.92,23.20524413]
[1741611628975,0.03,129.94,129.89,20.28314886]
[1741611628976,0.03,129.94,129.93,23.20524413]
[1741611629178,0.03,129.94,129.92,23.20524413]
[1741611629382,23.23524413,129.94,129.9,7.6982]
[1741611629582,0.03,129.94,129.9,23.20524413]
[1741611630081,0.03,129.94,129.91,23.20524413]
[1741611630275,0.03,129.94,129.9,23.20524413]
[1741611630476,0.03,129.94,129.91,23.20524413]
[1741611631276,23.23524413,129.94,129.89,1.6335]
[1741611631691,23.20524413,129.93,129.89,1.6335]
[1741611632098,23.23524413,129.94,129.89,1.6335]
[1741611632278,23.23524413,129.94,129.89,24.83874413]
[1741611633195,23.23524413,129.94,129.88,23.20524413]
[1741611633196,30.90164413,129.93,129.88,23.20524413]
[1741611633399,23.20524413,129.9,129.86,1.5723]
[1741611633582,7.34,129.89,129.86,1.5723]
[1741611633898,7.34,129.89,129.86,24.77754413]
[1741611634304,7.34,129.89,129.86,1.5723]
[1741611634688,7.34,129.89,129.86,24.77754413]
[1741611636290,15.0389,129.89,129.85,23.20524413]
[1741611636499,23.20524413,129.88,129.83,24.71954413]
[1741611637406,23.20524413,129.87,129.82,23.20524413]
[1741611637595,23.20524413,129.86,129.83,0.063]
[1741611638407,30.90634413,129.85,129.83,0.063]
[1741611638709,7.34,129.84,129.83,0.063]
[1741611639490,30.54524413,129.84,129.83,0.063]
[1741611640312,38.53126727,129.84,129.83,0.063]
[1741611640609,61.7365114,129.84,129.83,0.063]
[1741611641909,80.38616026,129.84,129.83,0.063]
[1741611642298,18.933972,129.83,129.8,0.0001]
[1741611642486,23.48956727,129.81,129.8,0.0001]
[1741611643485,104.58956727,129.81,129.8,0.0001]
[1741611645493,112.29306727,129.81,129.8,0.0001]
[1741611645714,104.58956727,129.81,129.8,0.0001]
[1741611648315,81.1,129.81,129.8,0.0001]
[1741611648690,30.54524413,129.85,129.8,23.20534413]
[1741611649016,12.4,129.87,129.82,30.90814413]
[1741611649017,7.34,129.87,129.82,30.90814413]
[1741611649312,7.34,129.87,129.83,23.20524413]
[1741611649313,0.03,129.84,129.83,23.20524413]
[1741611650610,0.03,129.84,129.83,41.85489299]
[1741611651109,7.34,129.87,129.86,23.20524413]
[1741611651305,7.34,129.87,129.84,30.90694413]
[1741611651708,7.34,129.87,129.85,23.20524413]
[1741611652212,7.34,129.87,129.84,30.90694413]
[1741611652589,7.34,129.87,129.85,23.20524413]
[1741611652893,214.00524413,129.91,129.86,7.7006]
[1741611653408,88.44,129.92,129.87,23.20524413]
[1741611653594,23.20524413,129.93,129.88,23.20524413]
[1741611653796,30.52524413,129.93,129.88,23.20524413]
[1741611653993,30.52524413,129.93,129.87,23.20524413]
[1741611654894,7.32,129.92,129.87,23.20524413]
[1741611655114,7.32,129.92,129.86,20.8226]
[1741611655115,7.32,129.92,129.89,23.20524413]
[1741611656005,104.4774057,129.94,129.89,23.20524413]
[1741611656223,104.4774057,129.94,129.91,23.20524413]
[1741611656224,0.03,129.94,129.91,23.20524413]
[1741611656512,0.03,129.94,129.92,23.20524413]
[1741611656903,0.03,129.94,129.93,30.90164413]
[1741611657212,0.03,129.94,129.93,32.41844413]
[1741611657698,0.03,129.94,129.93,9.2132]
[1741611658105,0.03,129.94,129.93,32.41844413]
[1741611658805,0.03,129.94,129.93,24.72204413]
[1741611658992,0.03,129.94,129.93,32.41844413]
[1741611659191,0.03,129.94,129.93,51.06809299]
[1741611659392,0.03,129.94,129.93,32.41844413]
[1741611660106,0.03,129.94,129.93,51.06809299]
[1741611660501,0.03,129.96,129.94,18.933972]
[1741611660806,0.03,129.98,129.94,18.933972]
[1741611660807,0.03,129.98,129.97,38.64964886]
[1741611660997,0.03,129.98,129.97,69.54889299]
[1741611661694,0.03,129.98,129.93,1.5168]
[1741611662016,23.23524413,129.98,129.93,32.41844413]
[1741611662195,0.03,129.98,129.97,23.20524413]
[1741611662798,0.03,129.98,129.97,41.85489299]
[1741611663097,0.03,129.98,129.97,49.54889299]
[1741611663719,0.03,129.98,129.96,43.20524413]
[1741611663919,0.03,129.98,129.93,1.5168]
[1741611663920,23.23524413,129.98,129.93,1.5168]
[1741611664101,23.23524413,129.98,129.9,27.00406747]
[1741611664102,23.20524413,129.97,129.9,7.6982]
[1741611664306,30.52524413,129.96,129.91,23.20524413]
[1741611664509,7.32,129.96,129.92,23.20524413]
[1741611664826,30.52524413,129.96,129.91,23.20524413]
[1741611665120,23.20524413,129.94,129.89,24.78344413]
[1741611665319,23.20524413,129.94,129.89,32.48204413]
[1741611665620,30.52524413,129.96,129.91,23.20524413]
[1741611665834,7.32,129.96,129.92,23.20524413]
[1741611666192,30.52524413,129.96,129.91,23.20524413]
[1741611666497,7.32,129.96,129.92,37.06824884]
[1741611667110,7.32,129.96,129.92,44.76484884]
[1741611667618,7.32,129.96,129.92,37.06824884]
[1741611668415,44.38824884,129.96,129.91,44.76554884]
[1741611668595,37.06824884,129.94,129.89,38.64644884]
[1741611668800,37.06824884,129.94,129.89,37.06824884]
[1741611669002,37.06824884,129.94,129.89,44.76694884]
[1741611669518,7.32,129.96,129.91,37.06824884]
[1741611669716,52.08294884,129.96,129.91,37.06824884]
[1741611669920,37.06824884,129.94,129.89,44.76694884]
[1741611670109,15.0147,129.96,129.9,37.06824884]
[1741611670110,37.06824884,129.95,129.9,37.06824884]
[1741611670914,81.24216157,129.97,129.92,37.06824884]
[1741611671108,7.32,129.96,129.93,7.6964]
[1741611671420,44.38824884,129.96,129.91,37.06824884]
[1741611671717,37.21041041,129.95,129.9,44.76644884]
[1741611671917,37.06824884,129.94,129.89,7.6985]
[1741611672119,37.06824884,129.93,129.89,7.6985]
[1741611672325,37.06824884,129.93,129.88,44.76734884]
[1741611672546,81.1,129.94,129.9,37.06824884]
[1741611672709,81.1,129.94,129.91,37.06824884]
[1741611672902,81.1,129.94,129.88,26.9476]
[1741611672903,81.1,129.94,129.9,37.06824884]
[1741611673103,7.32,129.95,129.91,37.06824884]
[1741611674026,44.38824884,129.95,129.9,37.13124884]
[1741611674726,7.32,129.95,129.91,37.06824884]
[1741611675125,7.32,129.95,129.91,7.6972]
[1741611675732,37.06824884,129.94,129.9,7.7609]
[1741611675910,44.38824884,129.95,129.9,44.82914884]
[1741611676117,7.32,129.95,129.92,37.06824884]
[1741611676312,7.32,129.95,129.93,37.06824884]
[1741611676823,44.38824884,129.97,129.92,37.06824884]
[1741611677028,37.06824884,129.96,129.91,37.06824884]
[1741611677326,37.06824884,129.95,129.91,7.6976]
[1741611677521,37.06824884,129.94,129.9,7.7609]
[1741611677746,37.06824884,129.91,129.9,0.063]
[1741611677931,44.53041041,129.91,129.9,0.063]
[1741611678109,44.67257198,129.91,129.9,0.063]
[1741611678516,100.39046968,129.91,129.9,0.063]
[1741611678912,63.32222084,129.91,129.9,0.063]
[1741611679630,71.01982084,129.91,129.9,0.063]
[1741611679926,108.08806968,129.91,129.9,0.063]
[1741611680707,71.01982084,129.91,129.9,0.063]
[1741611681110,63.32222084,129.91,129.9,0.063]
[1741611681532,44.67257198,129.91,129.9,0.063]
[1741611682348,37.35257198,129.91,129.9,0.063]
[1741611682553,220.44824884,129.92,129.9,0.063]
[1741611682720,190.7,129.92,129.9,0.063]
[1741611683231,7.32,129.92,129.9,0.063]
[1741611683731,7.32,129.92,129.9,37.13124884]
[1741611685128,7.32,129.92,129.91,7.6976]
[1741611686030,7.48276866,129.92,129.91,7.6976]
[1741611686848,7.48276866,129.92,129.9,7.7609]
[1741611687239,7.48276866,129.92,129.9,44.82914884]
[1741611687629,7.48276866,129.92,129.9,7.7609]
[1741611688661,7.48276866,129.92,129.9,30.93769013]
[1741611688960,0.16276866,129.92,129.91,23.17679013]
[1741611689177,0.16276866,129.92,129.91,30.87439013]
[1741611692363,0.16276866,129.92,129.91,7.6976]
[1741611692795,0.16276866,129.92,129.9,0.063]
[1741611693054,23.33955879,129.92,129.9,0.063]
[1741611696271,0.14216157,129.91,129.9,0.063]
[1741611696477,23.3189517,129.91,129.9,0.063]
[1741611699165,31.15871327,129.91,129.9,0.063]
[1741611699370,49.80836213,129.91,129.9,0.063]
[1741611699782,72.98515226,129.91,129.9,0.063]
[1741611700184,49.80836213,129.91,129.9,0.063]
[1741611700387,31.15871327,129.91,129.9,0.063]
[1741611700580,23.46111327,129.91,129.9,0.063]
[1741611701297,23.17679013,129.91,129.9,0.063]
[1741611701498,104.43955879,129.92,129.9,0.063]
[1741611701860,0.16276866,129.92,129.9,0.063]
[1741611702491,0.16276866,129.92,129.9,23.23979013]
[1741611702656,0.16276866,129.92,129.91,43.17679013]
[1741611702856,6.866e-05,129.92,129.91,43.17679013]
[1741611703080,6.866e-05,129.92,129.91,61.82643899]
[1741611704402,6.866e-05,129.92,129.91,75.7057682]
[1741611704602,6.866e-05,129.92,129.91,83.4033682]
[1741611705189,6.866e-05,129.92,129.91,84.84184156]
[1741611705389,0.15809326,129.93,129.92,37.05611934]
[1741611705776,0.31051347,129.93,129.92,37.05611934]
[1741611705976,0.15242021,129.93,129.92,37.05611934]
[1741611706587,2.021e-05,129.93,129.92,44.75311934]
[1741611708412,2.021e-05,129.93,129.92,63.4027682]
[1741611708615,2.021e-05,129.93,129.92,44.75311934]
[1741611709688,2.021e-05,129.93,129.91,37.05611934]
[1741611710018,2.021e-05,129.93,129.9,7.7611]
[1741611710186,2.021e-05,129.93,129.9,44.81721934]
[1741611710688,37.05611934,129.92,129.9,0.063]
[1741611710907,37.05611934,129.91,129.9,0.063]
[1741611711496,37.19828091,129.91,129.9,0.063]
[1741611712200,37.34044248,129.91,129.9,0.063]
[1741611712832,45.03804248,129.91,129.9,0.063]
[1741611713798,37.34044248,129.91,129.9,0.063]
[1741611714209,37.05611934,129.91,129.9,0.063]
[1741611714607,118.15611934,129.92,129.9,0.063]
[1741611715189,0.03002021,129.93,129.9,0.063]
[1741611715405,37.08613955,129.93,129.9,0.063]
[1741611718394,37.05611934,129.91,129.9,0.063]
[1741611718996,37.05611934,129.92,129.9,0.063]
[1741611719509,0.03002021,129.93,129.9,0.063]
[1741611720431,37.05611934,129.92,129.9,0.063]
[1741611721424,37.19828091,129.91,129.9,0.063]
[1741611721717,118.15611934,129.92,129.9,0.063]
[1741611721918,37.19828091,129.91,129.9,0.063]
[1741611722125,37.34044248,129.91,129.9,0.063]
[1741611722329,81.1,129.92,129.9,0.063]
[1741611722628,37.05611934,129.91,129.9,0.063]
[1741611722843,118.15611934,129.92,129.9,0.063]
[1741611724234,37.19828091,129.91,129.9,0.063]
[1741611724528,37.05611934,129.91,129.9,0.063]
[1741611725936,0.16754433,129.91,129.9,0.063]
[1741611726632,37.22366367,129.91,129.9,0.063]
[1741611729921,45.20558681,129.91,129.9,0.063]
[1741611730147,63.85523567,129.91,129.9,0.063]
[1741611732835,37.50798681,129.91,129.9,0.063]
[1741611733036,0.16754433,129.91,129.9,0.063]
[1741611733231,7.46754433,129.91,129.9,0.063]
[1741611733830,0.16754433,129.91,129.9,38.77061934]
[1741611734039,4.433e-05,129.91,129.9,94.47638754]
[1741611734240,0.14185404,129.94,129.9,94.47638754]
[1741611734241,0.14185404,129.94,129.93,20.0]
[1741611734452,0.14185404,129.94,129.93,75.7057682]
[1741611734627,0.14185404,129.94,129.93,57.05611934]
[1741611734838,0.14185404,129.94,129.93,83.4021682]
[1741611735160,3.167e-05,129.95,129.94,18.64964886]
[1741611735360,3.167e-05,129.95,129.94,62.0254682]
[1741611735729,3.167e-05,129.95,129.94,43.37581934]
[1741611735934,3.167e-05,129.95,129.93,44.75251934]
[1741611736240,3.167e-05,129.95,129.94,37.05611934]
[1741611736440,3.167e-05,129.95,129.93,44.75251934]
[1741611736646,3.167e-05,129.95,129.92,44.75301934]
[1741611736842,3.167e-05,129.95,129.92,37.05611934]
[1741611737040,37.05611934,129.94,129.9,1.7145]
[1741611737253,37.05611934,129.92,129.9,0.063]
[1741611737438,7.3,129.91,129.9,0.063]
[1741611738245,7.3,129.91,129.9,7.7612]
[1741611738445,7.3,129.91,129.9,0.063]
[1741611738855,7.3,129.91,129.9,7.7612]
[1741611739043,7.3,129.91,129.9,44.81731934]
[1741611739353,7.3,129.91,129.9,37.11911934]
[1741611740243,7.30003167,129.95,129.9,37.11911934]
[1741611740430,52.05165101,129.95,129.9,37.11911934]
[1741611740853,37.05611934,129.93,129.9,0.063]
[1741611741048,44.35615101,129.95,129.9,37.11911934]
[1741611741357,7.30003167,129.95,129.91,37.05611934]
[1741611742457,7.30003167,129.95,129.92,37.05611934]
[1741611742650,7.30003167,129.95,129.93,37.05611934]
[1741611742850,3.167e-05,129.95,129.94,44.75191934]
[1741611745040,3.167e-05,129.95,129.93,46.41131934]
[1741611745742,3.167e-05,129.95,129.93,9.3552]
[1741611745948,0.1418518,129.94,129.93,46.41131934]
[1741611746552,0.1418518,129.94,129.93,52.55501934]
[1741611747172,0.1418518,129.94,129.9,6.1596]
[1741611747475,44.35611934,129.93,129.9,0.063]
[1741611748075,44.35611934,129.93,129.9,7.7611]
[1741611748240,44.35611934,129.93,129.9,0.063]
[1741611748441,37.05611934,129.91,129.9,0.063]
[1741611748662,37.19828091,129.91,129.9,0.063]
[1741611748968,45.03804248,129.91,129.9,0.063]
[1741611749656,63.68769134,129.91,129.9,0.063]
[1741611749969,100.74381068,129.91,129.9,0.063]
[1741611750146,63.68769134,129.91,129.9,0.063]
[1741611751672,45.03804248,129.91,129.9,0.063]
[1741611752369,63.68769134,129.91,129.9,0.063]
[1741611753162,76.08769134,129.91,129.9,0.063]
[1741611753352,113.14381068,129.91,129.9,0.063]
[1741611753558,20.28432314,129.87,129.81,7.7033]
[1741611753761,37.05611934,129.85,129.81,7.7033]
[1741611753953,7.3,129.86,129.83,37.05611934]
[1741611754155,7.3,129.86,129.84,37.05611934]
[1741611754564,7.3,129.86,129.85,37.05611934]
[1741611755445,37.05611934,129.92,129.85,44.75721934]
[1741611755651,7.3,129.92,129.89,37.05611934]
[1741611755874,7.3,129.92,129.9,37.05611934]
[1741611756046,0.1418518,129.94,129.91,37.05611934]
[1741611756353,0.1418518,129.94,129.92,37.05611934]
[1741611756560,0.1418518,129.94,129.93,37.05611934]
[1741611757570,0.1418518,129.94,129.93,44.75251934]
[1741611759169,0.1418518,129.94,129.89,18.64964886]
[1741611759363,7.4418518,129.94,129.9,44.75431934]
[1741611759561,44.49797114,129.94,129.9,7.6982]
[1741611759762,7.4418518,129.94,129.9,7.6982]
[1741611760072,44.49797114,129.94,129.9,7.7612]
[1741611760251,44.52797114,129.94,129.9,7.7612]
[1741611760451,7.4718518,129.94,129.9,7.7612]
[1741611760661,7.4718518,129.94,129.9,44.81731934]
[1741611760881,7.4718518,129.94,129.9,7.7612]
[1741611761053,44.52797114,129.94,129.9,0.063]
[1741611761366,44.52797114,129.94,129.9,7.761]
[1741611763962,7.4718518,129.94,129.9,44.81711934]
[1741611764681,7.4718518,129.94,129.9,0.063]
[1741611764682,37.05611934,129.92,129.9,0.063]
[1741611764862,37.05611934,129.91,129.9,0.063]
[1741611765874,37.20274526,129.91,129.9,0.063]
[1741611766064,37.34490683,129.91,129.9,0.063]
[1741611766264,37.4870684,129.91,129.9,0.063]
[1741611766474,45.1846684,129.91,129.9,0.063]
[1741611766780,20.14216157,129.87,129.81,44.75951934]
[1741611766961,37.05611934,129.85,129.81,7.7034]
[1741611767164,7.3,129.86,129.81,7.7034]
[1741611767165,44.35611934,129.86,129.81,44.75951934]
[1741611767473,37.05611934,129.85,129.81,7.7034]
[1741611767670,37.05611934,129.84,129.8,7.704]
[1741611768480,37.05611934,129.85,129.8,44.76011934]
[1741611768676,125.45611934,129.86,129.81,37.05611934]
[1741611769267,88.4,129.86,129.81,37.05611934]
[1741611769790,125.45611934,129.86,129.81,37.05611934]
[1741611770084,37.05611934,129.85,129.8,64.02051934]
[1741611770785,37.05611934,129.84,129.8,7.704]
[1741611771484,96.1006,129.86,129.8,44.76011934]
[1741611771690,37.19828091,129.85,129.8,44.76011934]
[1741611772079,37.19828091,129.83,129.8,0.0001]